[Event "RUS-chT Women Rapid 2019"]
[Site "Sochi"]
[Date "2019.10.19"]
[Round "7.3"]
[White "Yakimova, Mariya"]
[Black "Guseva, Marina"]
[Result "1/2-1/2"]
[ECO "A64"]
[WhiteElo "2276"]
[BlackElo "2366"]
[Annotator "NA"]
[PlyCount "131"]
[EventDate "2019.10.18"]
[EventType "swiss"]
[EventCountry "RUS"]
[SourceTitle "playchess.com"]
[Source "ChessBase"]
[SourceQuality "1"]
[TimeControl "900+10"]

1. d4 {[%emt 0:00:00]} Nf6 {[%emt 0:00:00]} 2. c4 {[%emt 0:00:00]} e6 {[%emt 0:00:00]} 3. g3 {[%emt 0:00:00]} c5 {[%emt 0:00:00]} 4. d5 {[%emt 0:00:00]} exd5 {[%emt 0:00:00]} 5. cxd5 {[%emt 0:00:00]} d6 {[%emt 0:00:00]} 6. Nc3 {[%emt 0:00:00]} g6 {[%emt 0:00:01]} 7. Nf3 {[%emt 0:00:00]} Bg7 {[%emt 0:00:01]} 8. Bg2 {[%emt 0:00:00]} O-O {[%emt 0:00:02]} 9. O-O {[%emt 0:00:02]} Re8 {[%emt 0:00:03]} 10. Nd2 {[%emt 0:00:01]} a6 {[%emt 0:00:16]} 11. a4 {[%emt 0:00:01]} Nbd7 {[%emt 0:00:03]} 12. Nc4 {[%emt 0:00:10]} Ne5 {[%emt 0:00:13]} 13. Nxe5 {[%emt 0:00:02]} Rxe5 {[%emt 0:00:08]} 14. e4 {[%emt 0:00:02]} Re8 {[%emt 0:00:06]} 15. Re1 {[%emt 0:00:43]} Rb8 {[%emt 0:00:10]} 16. a5 {[%emt 0:00:09]} b5 {[%emt 0:01:48]} 17. axb6 {[%emt 0:00:01]} Qxb6 {[%emt 0:00:04]} 18. Na4 {[%emt 0:00:24]} Qd8 {[%emt 0:04:55]} 19. Qc2 {[%emt 0:04:42]} Nxd5 {[%emt 0:01:40]} 20. Rd1 {[%emt 0:00:02]} Nb4 {[%emt 0:00:02]} 21. Qd2 {[%emt 0:00:17]} Bd4 {[%emt 0:00:04]} 22. Qh6 {[%emt 0:01:08]} Nc6 {[%emt 0:03:38]} 23. Bg5 {[%emt 0:01:03]} Bf6 {[%emt 0:00:43]} 24. Bxf6 {[%emt 0:02:44]} Qxf6 {[%emt 0:00:03]} 25. Rd5 {[%emt 0:01:58]} Re5 {[%emt 0:01:15]} 26. Rxe5 {[%emt 0:01:23]} Qxe5 {[%emt 0:00:18]} 27. Rd1 {[%emt 0:00:32]} Nd4 {[%emt 0:00:12]} 28. f4 {[%emt 0:00:45]} Qe7 {[%emt 0:00:49]} 29. Nc3 {[%emt 0:01:01]} Be6 {[%emt 0:00:52]} 30. f5 {[%emt 0:00:49]} Bc4 {[%emt 0:00:10]} 31. Bf1 {[%emt 0:00:56]} Nf3+ {[%emt 0:01:09]} 32. Kf2 {[%emt 0:00:41]} Ne5 {[%emt 0:00:25]} 33. Kg1 {[%emt 0:00:14]} Bxf1 {[%emt 0:00:33]} 34. Nd5 {[%emt 0:00:06]} Qg5 {[%emt 0:00:41]} 35. Qxg5 {[%emt 0:00:30]} Nf3+ {[%emt 0:00:01]} 36. Kxf1 {[%emt 0:00:02]} Nxg5 {[%emt 0:00:01]} 37. Nf6+ {[%emt 0:00:15]} Kg7 {[%emt 0:00:01]} 38. Rxd6 {[%emt 0:00:09]} Rxb2 {[%emt 0:00:11]} 39. Rxa6 {[%emt 0:00:14]} Nf3 {[%emt 0:00:15]} 40. h4 {[%emt 0:00:18]} Ne5 {[%emt 0:00:24]} 41. Ne8+ {[%emt 0:00:12]} Kf8 {[%emt 0:00:02]} 42. Ra8 {[%emt 0:00:04]} gxf5 {[%emt 0:00:23]} 43. exf5 {[%emt 0:00:02]} Ke7 {[%emt 0:00:06]} 44. f6+ {[%emt 0:00:22]} Ke6 {[%emt 0:00:13]} 45. Ra6+ {[%emt 0:00:06]} Kf5 {[%emt 0:00:04]} 46. Nd6+ {[%emt 0:00:11]} Kg4 {[%emt 0:00:07]} 47. Ra7 {[%emt 0:00:15]} Kxg3 {[%emt 0:00:10]} 48. Ra3+ {[%emt 0:00:10]} Kf4 {[%emt 0:00:09]} 49. Ra7 {[%emt 0:00:09]} Kg3 {[%emt 0:00:16]} 50. Ne4+ {[%emt 0:00:04]} Kxh4 {[%emt 0:00:12]} 51. Nxc5 {[%emt 0:00:01]} Kg5 {[%emt 0:00:13]} 52. Ra6 {[%emt 0:00:22]} Ng4 {[%emt 0:00:12]} 53. Ne4+ {[%emt 0:00:10]} Kf4 {[%emt 0:00:07]} 54. Ra4 {[%emt 0:00:12]} Ne3+ {[%emt 0:00:10]} 55. Ke1 {[%emt 0:00:07]} Ke5 {[%emt 0:00:03]} 56. Ng5 {[%emt 0:00:11]} Kxf6 {[%emt 0:00:18]} 57. Nxh7+ {[%emt 0:00:01]} Kg6 {[%emt 0:00:04]} 58. Nf8+ {[%emt 0:00:01]} Kf5 {[%emt 0:00:03]} 59. Nd7 {[%emt 0:00:04]} Nd5 {[%emt 0:00:09]} 60. Ra5 {[%emt 0:00:14]} Ke4 {[%emt 0:00:06]} 61. Ra4+ {[%emt 0:00:18]} Ke3 {[%emt 0:00:16]} 62. Ra3+ {[%emt 0:00:02]} Kd4 {[%emt 0:00:08]} 63. Ra4+ {[%emt 0:00:03]} Nb4 {[%emt 0:00:07]} 64. Nf6 {[%emt 0:00:21]} Ke3 {[%emt 0:00:18]} 65. Rxb4 {[%emt 0:00:06]} Rxb4 {[%emt 0:00:07]} 66. Nd5+ {[%emt 0:00:01]} 1/2-1/2

[Event "RUS-chT Women Rapid 2019"]
[Site "Sochi"]
[Date "2019.10.19"]
[Round "7.4"]
[White "Kovanova, Baira"]
[Black "Markelova, Lubov"]
[Result "1-0"]
[ECO "A06"]
[WhiteElo "2344"]
[BlackElo "2198"]
[Annotator "NA RC"]
[PlyCount "103"]
[EventDate "2019.10.18"]
[EventType "swiss"]
[EventCountry "RUS"]
[SourceTitle "playchess.com"]
[Source "ChessBase"]
[SourceQuality "1"]
[TimeControl "900+10"]

1. Nf3 {[%emt 0:00:00]} d5 {[%emt 0:00:00]} 2. g3 {[%emt 0:00:00]} Nf6 {[%emt 0:00:00]} 3. Bg2 {[%emt 0:00:00]} c6 {[%emt 0:00:03]} 4. O-O {[%emt 0:00:04]} Bf5 {[%emt 0:00:02]} 5. d3 {[%emt 0:00:03]} h6 {[%emt 0:00:04]} 6. Nbd2 {[%emt 0:00:02]} e6 {[%emt 0:00:02]} 7. Qe1 {[%emt 0:00:29]} Be7 {[%emt 0:00:05]} 8. e4 {[%emt 0:00:02]} Bh7 {[%emt 0:00:11]} 9. b3 {[%emt 0:00:02]} O-O {[%emt 0:00:19]} 10. Bb2 {[%emt 0:00:03]} Nbd7 {[%emt 0:00:22]} 11. Qe2 {[%emt 0:00:04]} a5 {[%emt 0:00:44]} 12. a4 {[%emt 0:00:16]} Nc5 {[%emt 0:02:53]} 13. Ne5 {[%emt 0:00:25]} Nfd7 {[%emt 0:01:15]} 14. Ng4 {[%emt 0:01:34]} Nf6 {[%emt 0:01:03]} 15. Rad1 {[%emt 0:02:59]} Re8 {[%emt 0:02:29]} 16. Rfe1 {[%emt 0:00:29]} Nxg4 {[%emt 0:00:38]} 17. Qxg4 {[%emt 0:00:03]} Bf6 {[%emt 0:00:22]} 18. Ba3 {[%emt 0:01:20]} Na6 {[%emt 0:00:22]} 19. Qe2 {[%emt 0:01:37]} Bc3 {[%emt 0:01:24]} 20. Rf1 {[%emt 0:00:27]} Qb6 {[%emt 0:00:52]} 21. Nb1 {[%emt 0:00:43]} Bd4 {[%emt 0:00:37]} 22. Kh1 {[%emt 0:01:40]} Rad8 {[%emt 0:01:43]} 23. f4 {[%emt 0:00:04]} Bc5 {[%emt 0:00:27]} 24. Bb2 {[%emt 0:00:30]} Bd4 {[%emt 0:00:18]} 25. Bc1 {[%emt 0:00:38]} Bf6 {[%emt 0:02:03]} 26. e5 {[%emt 0:00:50]} Be7 {[%emt 0:00:01]} 27. g4 {[%emt 0:00:03]} c5 {[%emt 0:00:31]} 28. Na3 {[%emt 0:01:13]} Nb4 {[%emt 0:00:16]} 29. f5 {[%emt 0:01:08]} exf5 {[%emt 0:00:13]} 30. gxf5 {[%emt 0:00:02]} Bf6 {[%emt 0:00:12]} 31. Bf4 {[%emt 0:02:02]} Nc6 {[%emt 0:00:03]} 32. Qg4 {[%emt 0:00:30]} Nxe5 {[%emt 0:00:10]} 33. Qg3 {[%emt 0:00:01]} Qb4 {[%emt 0:00:31]} 34. Nb5 {[%emt 0:00:07]} Nc6 {[%emt 0:00:08]} 35. Nc7 {[%emt 0:00:03]} Re2 {[%emt 0:00:09]} 36. Nxd5 {[%emt 0:00:02]} Rxd5 {[%emt 0:00:06]} 37. Bxd5 {[%emt 0:00:01]} Qd4 {[%emt 0:00:20]} 38. Be4 {[%emt 0:00:33]} Rxc2 {[%emt 0:00:06]} 39. Rde1 {[%emt 0:00:01]} Ne5 {[%emt 0:00:12]} 40. Bxh6 {[%emt 0:00:13]} Nd7 {[%emt 0:00:10]} 41. Bf4 {[%emt 0:00:09]} Nf8 {[%emt 0:00:11]} 42. Rg1 {[%emt 0:00:08]} Rb2 {[%emt 0:00:06]} 43. Bh6 {[%emt 0:00:03]} Rxb3 {[%emt 0:00:11]} 44. Rc1 {[%emt 0:00:57]} b6 {[%emt 0:00:06]} 45. Qf3 {[%emt 0:00:06]} Rb2 {[%emt 0:00:08]} 46. Bxg7 {[%emt 0:00:13]} Bxg7 {[%emt 0:00:03]} 47. f6 {[%emt 0:00:02]} Bg6 {[%emt 0:00:21]} 48. fxg7 {[%emt 0:00:13]} Qxg7 {[%emt 0:00:02]} 49. Rcf1 {[%emt 0:00:06]} Qh7 {[%emt 0:00:21]} 50. Qf4 {[%emt 0:00:15]} Ne6 {[%emt 0:00:13]} 51. Bxg6 {[%emt 0:00:11]} Nxf4 {[%emt 0:00:10]} 52. Bxh7+ {[%emt 0:00:02]} 1-0

[Event "RUS-chT Women Rapid 2019"]
[Site "Sochi"]
[Date "2019.10.19"]
[Round "7.5"]
[White "Voit, Daria"]
[Black "Kochukova, Anna"]
[Result "1/2-1/2"]
[ECO "A46"]
[WhiteElo "2336"]
[BlackElo "1947"]
[Annotator "NA"]
[PlyCount "66"]
[EventDate "2019.10.18"]
[EventType "swiss"]
[EventCountry "RUS"]
[SourceTitle "playchess.com"]
[Source "ChessBase"]
[SourceQuality "1"]
[TimeControl "900+10"]

1. d4 {[%emt 0:00:00]} Nf6 {[%emt 0:00:00]} 2. Nf3 {[%emt 0:00:00]} b5 {[%emt 0:00:00]} 3. e4 {[%emt 0:00:00]} Nxe4 {[%emt 0:00:11]} 4. Bxb5 {[%emt 0:00:00]} Bb7 {[%emt 0:00:16]} 5. O-O {[%emt 0:00:17]} g6 {[%emt 0:00:25]} 6. Re1 {[%emt 0:00:29]} Bg7 {[%emt 0:00:36]} 7. Nc3 {[%emt 0:00:39]} Nxc3 {[%emt 0:00:30]} 8. bxc3 {[%emt 0:00:02]} O-O {[%emt 0:00:07]} 9. Rb1 {[%emt 0:00:08]} Bc6 {[%emt 0:01:37]} 10. Bd3 {[%emt 0:01:08]} d6 {[%emt 0:00:13]} 11. Bg5 {[%emt 0:00:07]} Re8 {[%emt 0:00:08]} 12. c4 {[%emt 0:01:49]} h6 {[%emt 0:01:30]} 13. Be3 {[%emt 0:00:10]} Nd7 {[%emt 0:00:47]} 14. Qd2 {[%emt 0:00:28]} Bxf3 {[%emt 0:00:40]} 15. gxf3 {[%emt 0:00:03]} Kh7 {[%emt 0:00:01]} 16. Be4 {[%emt 0:00:34]} Rb8 {[%emt 0:00:15]} 17. Bc6 {[%emt 0:01:47]} Rf8 {[%emt 0:00:36]} 18. Qa5 {[%emt 0:00:09]} e5 {[%emt 0:03:33]} 19. c3 {[%emt 0:01:09]} Rxb1 {[%emt 0:00:46]} 20. Rxb1 {[%emt 0:00:02]} Nb6 {[%emt 0:00:01]} 21. Rb4 {[%emt 0:00:58]} Qh4 {[%emt 0:01:10]} 22. c5 {[%emt 0:01:22]} Nc8 {[%emt 0:00:45]} 23. Qxc7 {[%emt 0:00:55]} exd4 {[%emt 0:00:31]} 24. cxd6 {[%emt 0:05:57]} Be5 {[%emt 0:00:13]} 25. Rxd4 {[%emt 0:00:02]} Qxh2+ {[%emt 0:02:07]} 26. Kf1 {[%emt 0:00:01]} Bxd4 {[%emt 0:00:28]} 27. Bxd4 {[%emt 0:00:01]} Qxd6 {[%emt 0:00:03]} 28. Qb7 {[%emt 0:00:02]} Qa3 {[%emt 0:00:12]} 29. Kg2 {[%emt 0:00:55]} Qc1 {[%emt 0:01:23]} 30. Bd5 {[%emt 0:00:17]} Qg5+ {[%emt 0:00:06]} 31. Kf1 {[%emt 0:00:01]} Qc1+ {[%emt 0:00:05]} 32. Kg2 {[%emt 0:00:01]} Qg5+ {[%emt 0:00:28]} 33. Kf1 {[%emt 0:00:02]} Qc1+ {[%emt 0:00:13]} 1/2-1/2

[Event "RUS-chT Women Rapid 2019"]
[Site "Sochi"]
[Date "2019.10.19"]
[Round "7.6"]
[White "Sakorenko, Adriana"]
[Black "Tomilova, Elena"]
[Result "0-1"]
[ECO "A06"]
[WhiteElo "1825"]
[BlackElo "2345"]
[Annotator "NA"]
[PlyCount "134"]
[EventDate "2019.10.18"]
[EventType "swiss"]
[EventCountry "RUS"]
[SourceTitle "playchess.com"]
[Source "ChessBase"]
[SourceQuality "1"]
[TimeControl "900+10"]

1. Nf3 {[%emt 0:00:00]} d5 {[%emt 0:00:00]} 2. g3 {[%emt 0:00:00]} Nf6 {[%emt 0:00:00]} 3. Bg2 {[%emt 0:00:00]} c6 {[%emt 0:00:00]} 4. O-O {[%emt 0:00:00]} Bf5 {[%emt 0:00:02]} 5. d3 {[%emt 0:00:00]} e6 {[%emt 0:00:13]} 6. Nbd2 {[%emt 0:00:00]} h6 {[%emt 0:00:01]} 7. Qe1 {[%emt 0:00:10]} Bh7 {[%emt 0:00:12]} 8. e4 {[%emt 0:00:15]} Be7 {[%emt 0:00:06]} 9. b3 {[%emt 0:02:34]} a5 {[%emt 0:00:10]} 10. a3 {[%emt 0:00:44]} Na6 {[%emt 0:00:54]} 11. Bb2 {[%emt 0:00:40]} O-O {[%emt 0:00:13]} 12. Ne5 {[%emt 0:01:03]} Nc5 {[%emt 0:01:37]} 13. f4 {[%emt 0:00:52]} Nfd7 {[%emt 0:02:23]} 14. d4 {[%emt 0:05:01]} Nxe4 {[%emt 0:00:50]} 15. Nxe4 {[%emt 0:00:01]} dxe4 {[%emt 0:00:02]} 16. Bxe4 {[%emt 0:00:01]} Bxe4 {[%emt 0:00:14]} 17. Qxe4 {[%emt 0:00:01]} Nf6 {[%emt 0:00:20]} 18. Qf3 {[%emt 0:01:32]} a4 {[%emt 0:01:15]} 19. b4 {[%emt 0:00:58]} Qd5 {[%emt 0:00:11]} 20. c4 {[%emt 0:00:30]} Qxf3 {[%emt 0:00:27]} 21. Rxf3 {[%emt 0:00:00]} Ne4 {[%emt 0:01:11]} 22. Re1 {[%emt 0:01:37]} f5 {[%emt 0:00:16]} 23. Rd3 {[%emt 0:02:18]} Rfd8 {[%emt 0:00:17]} 24. Kg2 {[%emt 0:00:11]} Bf6 {[%emt 0:00:18]} 25. Red1 {[%emt 0:00:02]} Rac8 {[%emt 0:01:10]} 26. Kf3 {[%emt 0:00:06]} g5 {[%emt 0:00:05]} 27. Ke3 {[%emt 0:00:19]} b5 {[%emt 0:00:26]} 28. Rc1 {[%emt 0:00:22]} Nd6 {[%emt 0:00:20]} 29. cxb5 {[%emt 0:00:10]} cxb5 {[%emt 0:00:11]} 30. Ke2 {[%emt 0:00:16]} Bxe5 {[%emt 0:01:25]} 31. dxe5 {[%emt 0:00:10]} Nc4 {[%emt 0:00:03]} 32. Rxd8+ {[%emt 0:00:11]} Rxd8 {[%emt 0:00:02]} 33. Rc2 {[%emt 0:00:01]} Kf7 {[%emt 0:00:11]} 34. Bc1 {[%emt 0:00:11]} g4 {[%emt 0:00:32]} 35. Rc3 {[%emt 0:00:12]} Ke7 {[%emt 0:01:05]} 36. Rc2 {[%emt 0:00:06]} h5 {[%emt 0:00:42]} 37. Rc3 {[%emt 0:00:02]} h4 {[%emt 0:00:08]} 38. Be3 {[%emt 0:00:22]} Rh8 {[%emt 0:00:40]} 39. Bg1 {[%emt 0:00:11]} Kd7 {[%emt 0:00:13]} 40. Rd3+ {[%emt 0:00:04]} Kc6 {[%emt 0:00:06]} 41. Kf2 {[%emt 0:00:15]} hxg3+ {[%emt 0:00:18]} 42. hxg3 {[%emt 0:00:04]} Kc7 {[%emt 0:00:07]} 43. Rc3 {[%emt 0:00:24]} Rh7 {[%emt 0:00:29]} 44. Ke2 {[%emt 0:00:07]} Kc6 {[%emt 0:00:10]} 45. Ke1 {[%emt 0:00:13]} Kd5 {[%emt 0:00:17]} 46. Ke2 {[%emt 0:00:01]} Rh1 {[%emt 0:00:21]} 47. Rd3+ {[%emt 0:00:05]} Kc6 {[%emt 0:00:04]} 48. Kf2 {[%emt 0:00:12]} Rh7 {[%emt 0:00:08]} 49. Ke1 {[%emt 0:00:05]} Rd7 {[%emt 0:00:05]} 50. Rc3 {[%emt 0:00:01]} Rd5 {[%emt 0:00:13]} 51. Be3 {[%emt 0:00:27]} Kd7 {[%emt 0:00:24]} 52. Ke2 {[%emt 0:00:16]} Kc6 {[%emt 0:00:32]} 53. Ke1 {[%emt 0:00:01]} Rd7 {[%emt 0:00:02]} 54. Ke2 {[%emt 0:00:16]} Rh7 {[%emt 0:00:07]} 55. Bg1 {[%emt 0:00:08]} Rh1 {[%emt 0:00:31]} 56. Kf2 {[%emt 0:00:01]} Kb7 {[%emt 0:00:21]} 57. Kf1 {[%emt 0:00:24]} Nd2+ {[%emt 0:00:22]} 58. Kg2 {[%emt 0:00:12]} Ne4 {[%emt 0:00:29]} 59. Rd3 {[%emt 0:00:10]} Rh7 {[%emt 0:00:03]} 60. Bc5 {[%emt 0:00:13]} Kc6 {[%emt 0:00:18]} 61. Bd4 {[%emt 0:00:10]} Rd7 {[%emt 0:00:14]} 62. Rd1 {[%emt 0:00:04]} Kb7 {[%emt 0:00:38]} 63. Rd3 {[%emt 0:00:10]} Rd8 {[%emt 0:00:05]} 64. Rd1 {[%emt 0:00:13]} Nc3 {[%emt 0:00:06]} 65. Rd2 {[%emt 0:00:10]} Nb1 {[%emt 0:00:03]} 66. Rd3 {[%emt 0:00:08]} Nxa3 {[%emt 0:00:03]} 67. Rxa3 {[%emt 0:00:01]} Rxd4 {[%emt 0:00:00]} 0-1

[Event "RUS-chT Women Rapid 2019"]
[Site "Sochi"]
[Date "2019.10.19"]
[Round "7.7"]
[White "Gritsayeva, Oksana"]
[Black "Shestakova, Ekaterina"]
[Result "1-0"]
[ECO "B31"]
[WhiteElo "2370"]
[BlackElo "1729"]
[Annotator "NA"]
[PlyCount "105"]
[EventDate "2019.10.18"]
[EventType "swiss"]
[EventCountry "RUS"]
[SourceTitle "playchess.com"]
[Source "ChessBase"]
[SourceQuality "1"]
[TimeControl "900+10"]

1. e4 {[%emt 0:00:00]} c5 {[%emt 0:00:00]} 2. Nf3 {[%emt 0:00:00]} Nc6 {[%emt 0:00:00]} 3. Bb5 {[%emt 0:00:00]} g6 {[%emt 0:00:00]} 4. Bxc6 {[%emt 0:00:00]} bxc6 {[%emt 0:00:00]} 5. O-O {[%emt 0:00:00]} Bg7 {[%emt 0:00:00]} 6. Re1 {[%emt 0:00:00]} Nh6 {[%emt 0:00:16]} 7. c3 {[%emt 0:00:07]} O-O {[%emt 0:00:02]} 8. d4 {[%emt 0:00:02]} cxd4 {[%emt 0:00:05]} 9. cxd4 {[%emt 0:00:01]} f6 {[%emt 0:00:04]} 10. Nc3 {[%emt 0:00:05]} d6 {[%emt 0:00:21]} 11. h3 {[%emt 0:00:22]} Nf7 {[%emt 0:00:03]} 12. b3 {[%emt 0:00:13]} f5 {[%emt 0:00:57]} 13. Bb2 {[%emt 0:00:58]} f4 {[%emt 0:00:37]} 14. e5 {[%emt 0:00:23]} d5 {[%emt 0:01:14]} 15. Na4 {[%emt 0:01:30]} Bf5 {[%emt 0:00:52]} 16. Rc1 {[%emt 0:00:12]} Rc8 {[%emt 0:00:19]} 17. Qe2 {[%emt 0:01:13]} e6 {[%emt 0:01:02]} 18. Nc5 {[%emt 0:00:23]} Ng5 {[%emt 0:00:29]} 19. Nxg5 {[%emt 0:01:25]} Qxg5 {[%emt 0:00:04]} 20. Rc3 {[%emt 0:00:29]} Qh4 {[%emt 0:02:46]} 21. Rec1 {[%emt 0:02:38]} g5 {[%emt 0:00:21]} 22. f3 {[%emt 0:01:11]} h5 {[%emt 0:01:27]} 23. Qf2 {[%emt 0:00:12]} Qxf2+ {[%emt 0:00:06]} 24. Kxf2 {[%emt 0:00:01]} g4 {[%emt 0:00:10]} 25. hxg4 {[%emt 0:00:04]} hxg4 {[%emt 0:00:05]} 26. Na6 {[%emt 0:01:24]} g3+ {[%emt 0:00:21]} 27. Kg1 {[%emt 0:00:44]} Rf7 {[%emt 0:00:11]} 28. Rxc6 {[%emt 0:00:12]} Rxc6 {[%emt 0:00:01]} 29. Rxc6 {[%emt 0:00:02]} Bf8 {[%emt 0:00:17]} 30. Rc7 {[%emt 0:00:28]} Bd3 {[%emt 0:01:22]} 31. Rxf7 {[%emt 0:00:10]} Kxf7 {[%emt 0:00:04]} 32. Nc5 {[%emt 0:01:25]} Be2 {[%emt 0:00:06]} 33. Bc1 {[%emt 0:00:51]} Bh6 {[%emt 0:00:02]} 34. a4 {[%emt 0:00:28]} Bg5 {[%emt 0:01:04]} 35. b4 {[%emt 0:00:01]} a6 {[%emt 0:00:02]} 36. Bd2 {[%emt 0:00:13]} Ke7 {[%emt 0:00:17]} 37. b5 {[%emt 0:00:20]} axb5 {[%emt 0:01:40]} 38. a5 {[%emt 0:00:01]} b4 {[%emt 0:00:16]} 39. a6 {[%emt 0:00:10]} Bb5 {[%emt 0:00:05]} 40. Bxb4 {[%emt 0:00:14]} Kf7 {[%emt 0:00:17]} 41. a7 {[%emt 0:00:24]} Bc6 {[%emt 0:00:01]} 42. Ba5 {[%emt 0:00:42]} Be7 {[%emt 0:01:25]} 43. Nd3 {[%emt 0:00:03]} Bg5 {[%emt 0:01:23]} 44. Kf1 {[%emt 0:00:27]} Ke8 {[%emt 0:00:29]} 45. Ke2 {[%emt 0:00:03]} Kf7 {[%emt 0:00:54]} 46. Ke1 {[%emt 0:00:37]} Ke8 {[%emt 0:00:04]} 47. Kd2 {[%emt 0:00:28]} Be7 {[%emt 0:00:16]} 48. Kc3 {[%emt 0:00:14]} Bg5 {[%emt 0:00:16]} 49. Bb6 {[%emt 0:00:38]} Kf7 {[%emt 0:00:04]} 50. Kb4 {[%emt 0:00:11]} Kg6 {[%emt 0:00:16]} 51. Kc5 {[%emt 0:00:14]} Ba8 {[%emt 0:00:06]} 52. Kd6 {[%emt 0:00:05]} Kf7 {[%emt 0:00:07]} 53. Kc7 {[%emt 0:00:13]} 1-0

[Event "RUS-chT Women Rapid 2019"]
[Site "Sochi"]
[Date "2019.10.19"]
[Round "7.10"]
[White "Ovod, Evgenija"]
[Black "Chan, Naruna"]
[Result "1-0"]
[ECO "B22"]
[WhiteElo "2347"]
[BlackElo "1890"]
[Annotator "NA"]
[PlyCount "59"]
[EventDate "2019.10.18"]
[EventType "swiss"]
[EventCountry "RUS"]
[SourceTitle "playchess.com"]
[Source "ChessBase"]
[SourceQuality "1"]
[TimeControl "900+10"]

1. e4 {[%emt 0:00:00]} c5 {[%emt 0:00:00]} 2. c3 {[%emt 0:00:00]} Nf6 {[%emt 0:00:00]} 3. e5 {[%emt 0:00:00]} Nd5 {[%emt 0:00:00]} 4. Nf3 {[%emt 0:00:00]} Nc6 {[%emt 0:00:16]} 5. Bc4 {[%emt 0:00:00]} e6 {[%emt 0:00:44]} 6. d4 {[%emt 0:00:04]} cxd4 {[%emt 0:00:06]} 7. cxd4 {[%emt 0:00:03]} d6 {[%emt 0:01:09]} 8. O-O {[%emt 0:00:03]} Be7 {[%emt 0:00:18]} 9. Qe2 {[%emt 0:00:11]} O-O {[%emt 0:01:14]} 10. Rd1 {[%emt 0:00:08]} Nb6 {[%emt 0:02:16]} 11. Bb3 {[%emt 0:00:11]} Kh8 {[%emt 0:01:44]} 12. Nc3 {[%emt 0:00:07]} d5 {[%emt 0:01:58]} 13. Bc2 {[%emt 0:01:36]} f5 {[%emt 0:01:12]} 14. exf6 {[%emt 0:00:07]} Bxf6 {[%emt 0:01:37]} 15. Ne5 {[%emt 0:03:51]} Qe8 {[%emt 0:00:43]} 16. Nb5 {[%emt 0:01:19]} Bxe5 {[%emt 0:01:21]} 17. dxe5 {[%emt 0:00:07]} Qf7 {[%emt 0:00:40]} 18. Nd6 {[%emt 0:00:26]} Qg8 {[%emt 0:01:09]} 19. a4 {[%emt 0:02:22]} Nc4 {[%emt 0:00:20]} 20. Nxc4 dxc4 {[%emt 0:00:01]} 21. Ra3 {[%emt 0:00:27]} Nb4 {[%emt 0:00:59]} 22. Bxh7 {[%emt 0:03:05]} Qxh7 {[%emt 0:00:12]} 23. Rh3 {[%emt 0:00:01]} Qxh3 {[%emt 0:00:01]} 24. gxh3 {[%emt 0:00:01]} Nd5 {[%emt 0:00:37]} 25. Rd4 {[%emt 0:00:38]} Kg8 {[%emt 0:00:14]} 26. Qh5 {[%emt 0:00:31]} Bd7 {[%emt 0:00:06]} 27. Rh4 {[%emt 0:00:43]} Rad8 {[%emt 0:00:17]} 28. Qh7+ {[%emt 0:00:23]} Kf7 {[%emt 0:00:01]} 29. Bh6 {[%emt 0:00:06]} Rg8 {[%emt 0:00:15]} 30. Rg4 {[%emt 0:00:08]} 1-0

[Event "RUS-chT Women Rapid 2019"]
[Site "Sochi"]
[Date "2019.10.19"]
[Round "7.11"]
[White "Dumcheva, Julia"]
[Black "Belenkaya, Dina"]
[Result "1/2-1/2"]
[ECO "B01"]
[WhiteElo "2152"]
[BlackElo "2300"]
[Annotator "NA"]
[PlyCount "78"]
[EventDate "2019.10.18"]
[EventType "swiss"]
[EventCountry "RUS"]
[SourceTitle "playchess.com"]
[Source "ChessBase"]
[SourceQuality "1"]
[TimeControl "900+10"]

1. e4 {[%emt 0:00:00]} d5 {[%emt 0:00:00]} 2. exd5 {[%emt 0:00:00]} Qxd5 {[%emt 0:00:00]} 3. Nc3 {[%emt 0:00:00]} Qa5 {[%emt 0:00:00]} 4. g3 {[%emt 0:00:04]} g6 {[%emt 0:00:00]} 5. Bg2 {[%emt 0:00:03]} Bg7 {[%emt 0:00:02]} 6. Nge2 {[%emt 0:00:18]} c6 {[%emt 0:00:01]} 7. O-O {[%emt 0:00:07]} Nf6 {[%emt 0:00:35]} 8. a3 {[%emt 0:00:14]} O-O {[%emt 0:00:07]} 9. b4 {[%emt 0:00:08]} Qc7 {[%emt 0:00:13]} 10. Bb2 {[%emt 0:00:05]} e5 {[%emt 0:04:01]} 11. d3 {[%emt 0:00:31]} Bf5 {[%emt 0:01:10]} 12. a4 {[%emt 0:01:29]} Re8 {[%emt 0:01:05]} 13. b5 {[%emt 0:00:19]} Qd7 {[%emt 0:00:11]} 14. Re1 {[%emt 0:00:17]} Bh3 {[%emt 0:00:12]} 15. Bh1 {[%emt 0:02:16]} a6 {[%emt 0:01:58]} 16. Rb1 {[%emt 0:01:45]} Ng4 {[%emt 0:02:22]} 17. Ne4 {[%emt 0:01:10]} axb5 {[%emt 0:00:05]} 18. axb5 {[%emt 0:00:06]} cxb5 {[%emt 0:01:12]} 19. Ng5 {[%emt 0:00:57]} Nh6 {[%emt 0:00:56]} 20. Nxh3 {[%emt 0:00:15]} Qxh3 {[%emt 0:00:01]} 21. Bg2 {[%emt 0:00:03]} Qd7 {[%emt 0:00:26]} 22. Nc3 {[%emt 0:00:09]} Na6 {[%emt 0:00:15]} 23. Nd5 {[%emt 0:00:24]} Rad8 {[%emt 0:00:13]} 24. Bc1 {[%emt 0:00:22]} Nc7 {[%emt 0:00:26]} 25. c4 {[%emt 0:01:10]} Nf5 {[%emt 0:01:01]} 26. Bg5 {[%emt 0:01:05]} Nxd5 {[%emt 0:00:47]} 27. Bxd5 {[%emt 0:00:14]} Rc8 {[%emt 0:00:10]} 28. Rxb5 {[%emt 0:00:29]} Nd6 {[%emt 0:00:01]} 29. Rb6 {[%emt 0:00:20]} Rc7 {[%emt 0:00:32]} 30. Qb1 {[%emt 0:00:15]} h6 {[%emt 0:00:58]} 31. Be3 {[%emt 0:00:11]} Rd8 {[%emt 0:00:09]} 32. Rxd6 {[%emt 0:01:55]} Qxd6 {[%emt 0:00:02]} 33. Bb6 {[%emt 0:00:01]} Rdd7 {[%emt 0:00:16]} 34. Bxc7 {[%emt 0:00:08]} Qxc7 {[%emt 0:00:04]} 35. Qb5 {[%emt 0:00:17]} b6 {[%emt 0:00:29]} 36. Ra1 {[%emt 0:00:07]} Bf8 {[%emt 0:00:05]} 37. Ra8 {[%emt 0:00:21]} Kg7 {[%emt 0:00:01]} 38. Kg2 {[%emt 0:00:20]} Bc5 {[%emt 0:00:02]} 39. Qa6 {[%emt 0:00:16]} Re7 {[%emt 0:00:03]} 1/2-1/2

[Event "RUS-chT Women Rapid 2019"]
[Site "Sochi"]
[Date "2019.10.19"]
[Round "7.12"]
[White "Styazhkina, Anna"]
[Black "Trapeznikova, Darya"]
[Result "1-0"]
[ECO "C55"]
[WhiteElo "2280"]
[BlackElo "2052"]
[Annotator "NA"]
[PlyCount "51"]
[EventDate "2019.10.18"]
[EventType "swiss"]
[EventCountry "RUS"]
[SourceTitle "playchess.com"]
[Source "ChessBase"]
[SourceQuality "1"]
[TimeControl "900+10"]

1. e4 {[%emt 0:00:00]} e5 {[%emt 0:00:00]} 2. Nf3 {[%emt 0:00:00]} Nc6 {[%emt 0:00:00]} 3. Bc4 {[%emt 0:00:06]} Nf6 {[%emt 0:00:00]} 4. d3 {[%emt 0:00:04]} Be7 {[%emt 0:00:00]} 5. Nc3 {[%emt 0:00:06]} O-O {[%emt 0:00:14]} 6. a3 {[%emt 0:00:03]} d6 {[%emt 0:00:02]} 7. h3 {[%emt 0:00:08]} Be6 {[%emt 0:00:38]} 8. Ng5 {[%emt 0:00:39]} Bxc4 {[%emt 0:00:23]} 9. dxc4 {[%emt 0:00:02]} Nd7 {[%emt 0:01:09]} 10. h4 {[%emt 0:02:17]} Nd4 {[%emt 0:01:53]} 11. Be3 {[%emt 0:00:49]} h6 {[%emt 0:02:21]} 12. Nf3 {[%emt 0:04:50]} Nxf3+ {[%emt 0:01:32]} 13. Qxf3 {[%emt 0:00:02]} Nb6 {[%emt 0:05:20]} 14. Qg3 {[%emt 0:01:24]} Kh8 {[%emt 0:00:26]} 15. b3 {[%emt 0:03:12]} f5 {[%emt 0:00:39]} 16. exf5 {[%emt 0:00:02]} Rxf5 {[%emt 0:00:09]} 17. O-O-O {[%emt 0:00:03]} Qf8 {[%emt 0:01:48]} 18. a4 {[%emt 0:00:53]} c6 {[%emt 0:00:16]} 19. Kb1 {[%emt 0:00:29]} Rd8 {[%emt 0:00:06]} 20. a5 {[%emt 0:00:38]} Nd7 {[%emt 0:00:19]} 21. Ne4 {[%emt 0:00:44]} b6 {[%emt 0:00:24]} 22. a6 {[%emt 0:00:19]} Nb8 {[%emt 0:00:05]} 23. Qg6 {[%emt 0:00:28]} Qf7 {[%emt 0:00:42]} 24. Qg4 {[%emt 0:01:12]} d5 {[%emt 0:00:11]} 25. Ng5 {[%emt 0:00:16]} hxg5 {[%emt 0:00:12]} 26. hxg5+ {[%emt 0:00:11] Qg6} 1-0